[Event "11th Dolomiti Open 2020"]
[Site "Forni di Sopra"]
[Date "2020.09.27"]
[Round "2.9"]
[White "Giorgi, Ezio Alberto"]
[Black "Di Lascio, Savino"]
[Result "1-0"]
[ECO "A46"]
[WhiteElo "1752"]
[BlackElo "1921"]
[Annotator "ChessBase"]
[PlyCount "121"]
[EventDate "2020.09.26"]
[EventType "swiss"]
[EventCountry "ITA"]
[SourceTitle "playchess.com"]
[Source "ChessBase"]
[SourceQuality "1"]
[TimeControl "40/5400+30:1800+30"]

1. d4 {[%emt 0:03:54]} Nf6 {[%emt 0:00:00]} 2. Bf4 {[%emt 0:00:07]} d6 {[%emt 0:00:12]} 3. Nf3 {[%emt 0:00:09]} Nbd7 {[%emt 0:00:36]} 4. e3 {[%emt 0:00:54]} c6 {[%emt 0:00:20]} 5. c4 {[%emt 0:00:18]} e5 {[%emt 0:00:31]} 6. Bg3 {[%emt 0:02:03]} e4 {[%emt 0:00:44]} 7. Nfd2 {[%emt 0:00:19]} h5 {[%emt 0:06:20]} 8. h3 {[%emt 0:00:56]} c5 {[%emt 0:01:10]} 9. d5 {[%emt 0:02:37]} a6 {[%emt 0:03:32]} 10. Nc3 {[%emt 0:00:29]} Qa5 {[%emt 0:01:10]} 11. Qc2 {[%emt 0:00:23]} b5 {[%emt 0:00:26]} 12. Ncxe4 {[%emt 0:01:51]} Nxe4 {[%emt 0:00:41]} 13. Qxe4+ {[%emt 0:00:21]} Kd8 {[%emt 0:00:13]} 14. Qc2 {[%emt 0:01:54]} h4 {[%emt 0:02:30]} 15. Bf4 {[%emt 0:01:02]} Rb8 {[%emt 0:01:53]} 16. Be2 {[%emt 0:00:41]} bxc4 {[%emt 0:00:33]} 17. Bxc4 {[%emt 0:01:34]} Be7 {[%emt 0:00:19]} 18. O-O {[%emt 0:01:36]} Bf6 {[%emt 0:00:30]} 19. Bb3 {[%emt 0:01:34]} Qc7 {[%emt 0:03:59]} 20. Nc4 {[%emt 0:03:24]} Be7 {[%emt 0:00:17]} 21. Qd2 {[%emt 0:03:04]} g5 {[%emt 0:00:35]} 22. Bh2 {[%emt 0:00:08]} Nf6 {[%emt 0:00:16]} 23. Na5 {[%emt 0:07:35]} Bd7 {[%emt 0:00:34]} 24. f3 {[%emt 0:03:54]} Nh5 {[%emt 0:01:33]} 25. Nc4 {[%emt 0:02:03]} Ng3 {[%emt 0:02:51]} 26. Bxg3 {[%emt 0:00:23]} hxg3 {[%emt 0:00:07]} 27. Qa5 {[%emt 0:00:09]} Qxa5 {[%emt 0:00:44]} 28. Nxa5 {[%emt 0:00:05]} Kc7 {[%emt 0:00:16]} 29. Nc4 {[%emt 0:02:00]} f5 {[%emt 0:03:00]} 30. Rfe1 {[%emt 0:02:01]} Bf6 {[%emt 0:00:45]} 31. Rab1 {[%emt 0:01:18]} f4 {[%emt 0:00:30]} 32. Kf1 {[%emt 0:04:36]} Bf5 {[%emt 0:11:43]} 33. e4 {[%emt 0:01:03]} Bxh3 {[%emt 0:00:18]} 34. gxh3 {[%emt 0:11:38]} Rxh3 {[%emt 0:00:12]} 35. Ke2 {[%emt 0:01:37]} Rbh8 {[%emt 0:02:27]} 36. e5 {[%emt 0:01:56]} dxe5 {[%emt 0:01:26]} 37. Kd3 {[%emt 0:03:30]} g2 {[%emt 0:01:00]} 38. d6+ {[%emt 0:02:35]} Kd8 {[%emt 0:00:24]} 39. Ke4 {[%emt 0:00:24]} R8h4 {[%emt 0:02:24]} 40. Rg1 {[%emt 0:05:43]} Rg3 {[%emt 0:00:50]} 41. Bd1 {[%emt 0:32:22]} Kd7 {[%emt 0:36:10]} 42. Be2 {[%emt 0:03:10]} Rh2 {[%emt 0:03:49]} 43. Rbd1 {[%emt 0:00:48]} Rgh3 {[%emt 0:01:16]} 44. Nxe5+ {[%emt 0:01:06]} Bxe5 {[%emt 0:00:20]} 45. Kxe5 {[%emt 0:00:05]} g4 {[%emt 0:00:17]} 46. Kxf4 {[%emt 0:00:58]} gxf3 {[%emt 0:01:18]} 47. Bxf3 {[%emt 0:00:18]} Rh6 {[%emt 0:02:16]} 48. Rxg2 {[%emt 0:01:18]} Rf6+ {[%emt 0:00:55]} 49. Ke3 {[%emt 0:00:58]} Rh3 {[%emt 0:00:31]} 50. Rf2 {[%emt 0:02:40]} Rxd6 {[%emt 0:00:26]} 51. Rxd6+ {[%emt 0:01:15]} Kxd6 {[%emt 0:00:07]} 52. Kd2 {[%emt 0:00:15]} Kc7 {[%emt 0:00:57]} 53. Be2 {[%emt 0:00:11]} Rh6 {[%emt 0:00:59]} 54. Rg2 {[%emt 0:00:37]} Rd6+ {[%emt 0:01:40]} 55. Kc3 {[%emt 0:00:09]} a5 {[%emt 0:02:44]} 56. Bd3 {[%emt 0:00:09]} Kb7 {[%emt 0:01:00]} 57. Rg6 {[%emt 0:00:15]} Rd4 {[%emt 0:00:24]} 58. Re6 {[%emt 0:03:11]} Rd8 {[%emt 0:02:56]} 59. Be4+ {[%emt 0:00:30]} Ka7 {[%emt 0:00:32]} 60. Rc6 {[%emt 0:00:57]} Re8 {[%emt 0:00:23]} 61. Bd3 {[%emt 0:00:33]} 1-0

[Event "11th Dolomiti Open 2020"]
[Site "Forni di Sopra"]
[Date "2020.09.27"]
[Round "2.10"]
[White "Akhmedov, Alisher"]
[Black "Rivara, Massimo"]
[Result "1-0"]
[ECO "E49"]
[WhiteElo "1856"]
[BlackElo "1743"]
[Annotator "NA"]
[PlyCount "65"]
[EventDate "2020.09.26"]
[EventType "swiss"]
[EventCountry "ITA"]
[SourceTitle "playchess.com"]
[Source "ChessBase"]
[SourceQuality "1"]
[TimeControl "40/5400+30:1800+30"]

1. d4 {[%emt 0:00:00]} Nf6 {[%emt 0:00:00]} 2. c4 {[%emt 0:00:00]} e6 {[%emt 0:00:00]} 3. Nc3 {[%emt 0:00:00]} Bb4 {[%emt 0:00:00]} 4. e3 {[%emt 0:00:03]} c5 {[%emt 0:00:06]} 5. a3 {[%emt 0:00:06]} Bxc3+ {[%emt 0:00:10]} 6. bxc3 {[%emt 0:00:07]} d5 {[%emt 0:00:54]} 7. cxd5 {[%emt 0:00:09]} exd5 {[%emt 0:00:08]} 8. f3 {[%emt 0:00:31]} O-O {[%emt 0:00:39]} 9. Bd3 {[%emt 0:01:44]} Re8 {[%emt 0:01:29]} 10. Ne2 {[%emt 0:00:20]} Nc6 {[%emt 0:03:54]} 11. g4 {[%emt 0:00:19]} Be6 {[%emt 0:03:09]} 12. O-O {[%emt 0:00:22]} Qc7 {[%emt 0:03:14]} 13. Ng3 {[%emt 0:00:40]} h6 {[%emt 0:04:03]} 14. Ra2 {[%emt 0:02:38]} Na5 {[%emt 0:02:47]} 15. Nf5 {[%emt 0:01:21]} cxd4 {[%emt 0:01:10]} 16. cxd4 {[%emt 0:00:23]} Rac8 {[%emt 0:06:19]} 17. Rg2 {[%emt 0:01:01]} Nc4 {[%emt 0:03:53]} 18. e4 {[%emt 0:00:26]} Nh7 {[%emt 0:06:21]} 19. e5 {[%emt 0:01:48]} Rcd8 {[%emt 0:04:31]} 20. h4 {[%emt 0:00:36]} Kh8 {[%emt 0:02:16]} 21. g5 {[%emt 0:00:46]} h5 {[%emt 0:00:31]} 22. g6 {[%emt 0:00:34]} fxg6 {[%emt 0:02:25]} 23. Rxg6 {[%emt 0:00:27]} Bxf5 {[%emt 0:03:40]} 24. Bxf5 {[%emt 0:02:02]} Qf7 {[%emt 0:06:35]} 25. Bb1 {[%emt 0:01:53]} Nf8 {[%emt 0:01:26]} 26. f4 {[%emt 0:02:05]} Re6 {[%emt 0:04:47]} 27. f5 {[%emt 0:04:05]} Nxg6 {[%emt 0:05:39]} 28. Qxh5+ {[%emt 0:00:17]} Kg8 {[%emt 0:00:16]} 29. fxg6 {[%emt 0:00:28]} Qxf1+ {[%emt 0:01:45]} 30. Kxf1 {[%emt 0:00:18]} Rb6 {[%emt 0:02:40]} 31. Qh7+ {[%emt 0:00:43]} Kf8 {[%emt 0:00:11]} 32. Qh8+ {[%emt 0:00:29]} Ke7 {[%emt 0:00:07]} 33. Bg5+ {[%emt 0:00:13]} 1-0

[Event "11th Dolomiti Open 2020"]
[Site "Forni di Sopra"]
[Date "2020.09.28"]
[Round "3.1"]
[White "Valsecchi, Alessio"]
[Black "Heberla, Bartlomiej"]
[Result "1-0"]
[ECO "B70"]
[WhiteElo "2491"]
[BlackElo "2566"]
[Annotator "ChessBase"]
[PlyCount "69"]
[EventDate "2020.09.26"]
[EventType "swiss"]
[EventCountry "ITA"]
[SourceTitle "playchess.com"]
[Source "ChessBase"]
[SourceQuality "1"]
[TimeControl "40/5400+30:1800+30"]

1. e4 {[%emt 0:00:00]} c5 {[%emt 0:06:19]} 2. Nf3 {[%emt 0:00:00]} d6 {[%emt 0:00:04]} 3. d4 {[%emt 0:00:00]} cxd4 {[%emt 0:00:09]} 4. Nxd4 {[%emt 0:00:00]} Nf6 {[%emt 0:00:03]} 5. Nc3 {[%emt 0:00:04]} Nc6 {[%emt 0:00:06]} 6. Bg5 {[%emt 0:00:25]} g6 {[%emt 0:00:07]} 7. Be2 {[%emt 0:08:13]} Bg7 {[%emt 0:00:41]} 8. Nb3 {[%emt 0:00:07]} O-O {[%emt 0:00:20]} 9. O-O {[%emt 0:00:08]} b6 {[%emt 0:15:26]} 10. f4 {[%emt 0:02:14]} Bb7 {[%emt 0:00:15]} 11. Bf3 {[%emt 0:01:41]} Nd7 {[%emt 0:10:23]} 12. Qd2 {[%emt 0:08:15]} Nc5 {[%emt 0:04:47]} 13. f5 {[%emt 0:24:05]} Ne5 {[%emt 0:04:15]} 14. Nxc5 {[%emt 0:09:39]} bxc5 {[%emt 0:03:35]} 15. Be2 {[%emt 0:02:52]} Bc6 {[%emt 0:03:34]} 16. Rae1 {[%emt 0:04:52]} Re8 {[%emt 0:06:02]} 17. Nd5 {[%emt 0:06:23]} Bxd5 {[%emt 0:00:26]} 18. exd5 {[%emt 0:03:53]} Qb6 {[%emt 0:02:25]} 19. c4 {[%emt 0:01:22]} Rab8 {[%emt 0:01:15]} 20. b3 {[%emt 0:00:31]} a5 {[%emt 0:00:05]} 21. fxg6 {[%emt 0:01:13]} hxg6 {[%emt 0:02:04]} 22. h4 {[%emt 0:00:56]} Qb4 {[%emt 0:01:11]} 23. Qc2 {[%emt 0:00:51]} e6 {[%emt 0:05:29]} 24. Bd2 {[%emt 0:03:41]} Qb7 {[%emt 0:01:58]} 25. h5 {[%emt 0:05:19]} exd5 {[%emt 0:01:22]} 26. hxg6 {[%emt 0:00:10]} fxg6 {[%emt 0:00:27]} 27. Bf4 {[%emt 0:02:18]} Qe7 {[%emt 0:13:33]} 28. cxd5 {[%emt 0:02:57]} Rb4 {[%emt 0:05:04]} 29. Bc4 {[%emt 0:02:11]} Qh4 {[%emt 0:05:18]} 30. Rxe5 {[%emt 0:00:35]} dxe5 {[%emt 0:01:39]} 31. Qxg6 {[%emt 0:00:27]} Rf8 {[%emt 0:01:24]} 32. Bxe5 {[%emt 0:01:11]} Rxf1+ {[%emt 0:02:15]} 33. Kxf1 {[%emt 0:00:14]} Qh7 {[%emt 0:03:54]} 34. d6+ {[%emt 0:01:31]} Rxc4 {[%emt 0:00:03]} 35. Qe6+ {[%emt 0:00:39]} 1-0

[Event "11th Dolomiti Open 2020"]
[Site "Forni di Sopra"]
[Date "2020.09.28"]
[Round "3.2"]
[White "Moroni, Luca Jr"]
[Black "Gumularz, Szymon"]
[Result "1-0"]
[ECO "E20"]
[WhiteElo "2530"]
[BlackElo "2518"]
[Annotator "ChessBase"]
[PlyCount "57"]
[EventDate "2020.09.26"]
[EventType "swiss"]
[EventCountry "ITA"]
[SourceTitle "playchess.com"]
[Source "ChessBase"]
[SourceQuality "1"]
[TimeControl "40/5400+30:1800+30"]

1. d4 {[%emt 0:00:00]} Nf6 {[%emt 0:00:00]} 2. c4 {[%emt 0:00:00]} e6 {[%emt 0:00:00]} 3. Nc3 {[%emt 0:00:00]} Bb4 {[%emt 0:00:00]} 4. g3 {[%emt 0:00:00]} O-O {[%emt 0:02:13]} 5. Bg2 {[%emt 0:00:00]} d5 {[%emt 0:00:36]} 6. Nf3 {[%emt 0:00:00]} dxc4 {[%emt 0:00:04]} 7. O-O {[%emt 0:00:00]} Nc6 {[%emt 0:00:02]} 8. Qa4 {[%emt 0:00:00]} Nd5 {[%emt 0:00:04]} 9. Qc2 {[%emt 0:00:07]} Be7 {[%emt 0:03:44]} 10. Rd1 {[%emt 0:00:07]} Bd7 {[%emt 0:02:52]} 11. e4 {[%emt 0:20:58]} Ncb4 {[%emt 0:05:43]} 12. Qd2 {[%emt 0:04:17]} Nb6 {[%emt 0:06:14]} 13. Ne5 {[%emt 0:05:43]} Nc6 {[%emt 0:06:52]} 14. Nxc6 {[%emt 0:06:57]} Bxc6 {[%emt 0:00:12]} 15. Qe2 {[%emt 0:59:21]} Re8 {[%emt 0:10:12]} 16. Be3 {[%emt 0:00:00]} f5 {[%emt 0:04:27]} 17. d5 {[%emt 0:00:00]} exd5 {[%emt 0:00:23]} 18. Bxb6 {[%emt 0:00:00]} axb6 {[%emt 0:11:04]} 19. Nxd5 {[%emt 0:00:00]} b5 {[%emt 0:18:30]} 20. Nb6 {[%emt 0:00:00]} Bd6 {[%emt 0:05:16]} 21. Nxa8 {[%emt 0:00:00]} Qxa8 {[%emt 0:03:24]} 22. a4 {[%emt 0:00:00]} Qa6 {[%emt 0:00:18]} 23. axb5 {[%emt 0:00:00]} Qxb5 {[%emt 0:00:03]} 24. Rd4 {[%emt 0:00:00]} fxe4 {[%emt 0:05:24]} 25. Bxe4 {[%emt 0:00:00]} Bc5 {[%emt 0:05:56]} 26. Bxc6 {[%emt 0:00:00]} Qxc6 {[%emt 0:00:10]} 27. Qxc4+ {[%emt 0:00:00]} Kh8 {[%emt 0:00:03]} 28. Re4 {[%emt 0:00:00]} Rf8 {[%emt 0:01:08]} 29. Rf4 {[%emt 0:00:00]} 1-0

[Event "11th Dolomiti Open 2020"]
[Site "Forni di Sopra"]
[Date "2020.09.28"]
[Round "3.4"]
[White "Cumming, Rhys"]
[Black "Barp, Alberto"]
[Result "1/2-1/2"]
[ECO "D35"]
[WhiteElo "2299"]
[BlackElo "2377"]
[Annotator "ChessBase"]
[PlyCount "35"]
[EventDate "2020.09.26"]
[EventType "swiss"]
[EventCountry "ITA"]
[SourceTitle "playchess.com"]
[Source "ChessBase"]
[SourceQuality "1"]
[TimeControl "40/5400+30:1800+30"]

1. d4 {[%emt 0:00:13]} d5 {[%emt 0:00:30]} 2. c4 {[%emt 0:00:28]} e6 {[%emt 0:00:10]} 3. Nc3 {[%emt 0:00:30]} Nf6 {[%emt 0:03:47]} 4. cxd5 {[%emt 0:00:32]} Nxd5 {[%emt 0:00:21]} 5. e4 {[%emt 0:00:33]} Nxc3 {[%emt 0:00:04]} 6. bxc3 {[%emt 0:00:08]} c5 {[%emt 0:00:04]} 7. Rb1 {[%emt 0:00:43]} Be7 {[%emt 0:00:20]} 8. h4 {[%emt 0:00:11]} O-O {[%emt 0:08:17]} 9. h5 {[%emt 0:00:09]} h6 {[%emt 0:06:45]} 10. Qg4 {[%emt 0:00:26]} Kh8 {[%emt 0:17:33]} 11. e5 {[%emt 0:00:45]} cxd4 {[%emt 0:01:37]} 12. Bd3 {[%emt 0:01:40]} Nd7 {[%emt 0:22:32]} 13. Bxh6 {[%emt 0:01:18]} gxh6 {[%emt 0:02:37]} 14. Qe4 {[%emt 0:00:12]} f5 {[%emt 0:00:16]} 15. exf6 {[%emt 0:00:08]} Nxf6 {[%emt 0:01:17]} 16. Qg6 {[%emt 0:00:06]} Qc7 {[%emt 0:15:21]} 17. Qxh6+ {[%emt 0:03:03]} Kg8 {[%emt 0:00:26]} 18. Qg6+ {[%emt 0:00:36]} 1/2-1/2

[Event "11th Dolomiti Open 2020"]
[Site "Forni di Sopra"]
[Date "2020.09.28"]
[Round "3.5"]
[White "Bellia, Fabrizio"]
[Black "Lumachi, Gabriele"]
[Result "1-0"]
[ECO "B02"]
[WhiteElo "2421"]
[BlackElo "2327"]
[Annotator "ChessBase"]
[PlyCount "81"]
[EventDate "2020.09.26"]
[EventType "swiss"]
[EventCountry "ITA"]
[SourceTitle "playchess.com"]
[Source "ChessBase"]
[SourceQuality "1"]
[TimeControl "40/5400+30:1800+30"]

1. e4 {[%emt 0:00:00]} Nf6 {[%emt 0:00:00]} 2. e5 {[%emt 0:00:02]} Ng8 {[%emt 0:00:00]} 3. d4 {[%emt 0:03:00]} d6 {[%emt 0:00:07]} 4. Nf3 {[%emt 0:00:35]} Nc6 {[%emt 0:00:12]} 5. Bb5 {[%emt 0:01:48]} a6 {[%emt 0:00:11]} 6. Bxc6+ {[%emt 0:01:19]} bxc6 {[%emt 0:00:09]} 7. O-O {[%emt 0:01:53]} e6 {[%emt 0:00:14]} 8. Re1 {[%emt 0:05:30]} Ne7 {[%emt 0:01:01]} 9. Nc3 {[%emt 0:04:31]} Ng6 {[%emt 0:25:04]} 10. Ne4 {[%emt 0:16:09]} Be7 {[%emt 0:11:34]} 11. b3 {[%emt 0:05:56]} O-O {[%emt 0:16:20]} 12. Ba3 {[%emt 0:15:05]} Bb7 {[%emt 0:02:54]} 13. Qd2 {[%emt 0:05:34]} c5 {[%emt 0:14:54]} 14. exd6 {[%emt 0:01:47]} cxd6 {[%emt 0:00:05]} 15. dxc5 {[%emt 0:00:09]} dxc5 {[%emt 0:02:09]} 16. Qe3 {[%emt 0:04:55]} c4 {[%emt 0:04:24]} 17. Red1 {[%emt 0:08:29]} Qc7 {[%emt 0:01:09]} 18. Bxe7 {[%emt 0:01:44]} Qxe7 {[%emt 0:01:04]} 19. Nd6 {[%emt 0:02:37]} cxb3 {[%emt 0:01:31]} 20. axb3 {[%emt 0:00:11]} Rfd8 {[%emt 0:00:37]} 21. Nxb7 {[%emt 0:01:22]} Qxb7 {[%emt 0:00:28]} 22. h4 {[%emt 0:02:25]} h6 {[%emt 0:03:43]} 23. Rd4 {[%emt 0:02:16]} Rxd4 {[%emt 0:04:17]} 24. Qxd4 {[%emt 0:00:12]} Ne7 {[%emt 0:05:54]} 25. Rd1 {[%emt 0:03:39]} Nd5 {[%emt 0:00:11]} 26. Ne5 {[%emt 0:01:03]} Rc8 {[%emt 0:01:13]} 27. c4 {[%emt 0:02:57]} Nf6 {[%emt 0:00:21]} 28. Qe3 {[%emt 0:01:24]} Qe4 {[%emt 0:02:17]} 29. Qxe4 {[%emt 0:01:50]} Nxe4 {[%emt 0:00:03]} 30. f3 {[%emt 0:01:18]} Nf6 {[%emt 0:01:23]} 31. Ra1 {[%emt 0:01:24]} Ra8 {[%emt 0:00:56]} 32. b4 {[%emt 0:00:22]} Rb8 {[%emt 0:00:19]} 33. Rxa6 {[%emt 0:00:44]} Rxb4 {[%emt 0:00:05]} 34. Ra8+ {[%emt 0:00:05]} Kh7 {[%emt 0:00:07]} 35. Nxf7 {[%emt 0:00:02]} Kg6 {[%emt 0:01:21]} 36. Ne5+ {[%emt 0:00:29]} Kh5 {[%emt 0:01:05]} 37. Ra7 {[%emt 0:00:53]} Kxh4 {[%emt 0:00:36]} 38. Rxg7 {[%emt 0:00:12]} Rb1+ {[%emt 0:00:16]} 39. Kh2 {[%emt 0:00:13]} Re1 {[%emt 0:00:38]} 40. Nd3 {[%emt 0:02:13]} Re2 {[%emt 0:00:30]} 41. Rg6 {[%emt 0:30:55]} 1-0

[Event "11th Dolomiti Open 2020"]
[Site "Forni di Sopra"]
[Date "2020.09.28"]
[Round "3.6"]
[White "Seresin, Francesco"]
[Black "Marchesich, Giovanni"]
[Result "1/2-1/2"]
[ECO "E81"]
[WhiteElo "2371"]
[BlackElo "2063"]
[Annotator "ChessBase"]
[PlyCount "67"]
[EventDate "2020.09.26"]
[EventType "swiss"]
[EventCountry "ITA"]
[SourceTitle "playchess.com"]
[Source "ChessBase"]
[SourceQuality "1"]
[TimeControl "40/5400+30:1800+30"]

1. d4 {[%emt 0:00:00]} Nf6 {[%emt 0:00:00]} 2. c4 {[%emt 0:00:25]} g6 {[%emt 0:00:20]} 3. Nc3 {[%emt 0:00:14]} Bg7 {[%emt 0:00:55]} 4. e4 {[%emt 0:00:34]} d6 {[%emt 0:00:27]} 5. f3 {[%emt 0:00:39]} O-O {[%emt 0:00:56]} 6. Be3 {[%emt 0:00:09]} c5 {[%emt 0:01:32]} 7. Nge2 {[%emt 0:00:13]} Nc6 {[%emt 0:00:52]} 8. d5 {[%emt 0:00:21]} Ne5 {[%emt 0:00:39]} 9. Ng3 {[%emt 0:00:08]} h5 {[%emt 0:01:59]} 10. Be2 {[%emt 0:00:34]} h4 {[%emt 0:01:18]} 11. Nf1 {[%emt 0:00:17]} e6 {[%emt 0:00:46]} 12. f4 {[%emt 0:02:15]} Nxc4 {[%emt 0:01:00]} 13. Bxc4 {[%emt 0:00:13]} b5 {[%emt 0:00:50]} 14. Bxb5 {[%emt 0:03:00]} exd5 {[%emt 0:02:35]} 15. e5 {[%emt 0:00:57]} Ng4 {[%emt 0:11:37]} 16. Qxd5 {[%emt 0:10:18]} Rb8 {[%emt 0:07:20]} 17. h3 {[%emt 0:18:28]} Be6 {[%emt 0:10:21]} 18. Qd2 {[%emt 0:05:41]} Nh6 {[%emt 0:03:09]} 19. Bd3 {[%emt 0:07:16]} Qb6 {[%emt 0:03:51]} 20. Ne4 {[%emt 0:14:53]} Nf5 {[%emt 0:02:48]} 21. Nf6+ {[%emt 0:06:50]} Bxf6 {[%emt 0:06:14]} 22. exf6 {[%emt 0:01:35]} Qxb2 {[%emt 0:05:31]} 23. Rd1 {[%emt 0:00:57]} Rfe8 {[%emt 0:04:30]} 24. Bxf5 {[%emt 0:10:53]} Bxf5 {[%emt 0:00:30]} 25. Kf2 {[%emt 0:00:29]} Qxf6 {[%emt 0:02:33]} 26. Qxd6 {[%emt 0:02:20]} Rb2+ {[%emt 0:00:47]} 27. Kg1 {[%emt 0:00:39]} Qxd6 {[%emt 0:09:46]} 28. Rxd6 {[%emt 0:00:07]} Rxa2 {[%emt 0:00:12]} 29. Bxc5 {[%emt 0:04:24]} Kh7 {[%emt 0:05:30]} 30. Ne3 {[%emt 0:01:08]} Be4 {[%emt 0:00:19]} 31. Kh2 {[%emt 0:00:37]} Ba8 {[%emt 0:00:25]} 32. Rhd1 {[%emt 0:01:11]} Rxe3 {[%emt 0:00:16]} 33. Bxe3 {[%emt 0:02:45]} Rxg2+ {[%emt 0:00:42]} 34. Kh1 {[%emt 0:00:06]} 1/2-1/2

[Event "11th Dolomiti Open 2020"]
[Site "Forni di Sopra"]
[Date "2020.09.28"]
[Round "3.7"]
[White "Tencati, Giuseppe"]
[Black "Fecker, Noah"]
[Result "0-1"]
[ECO "A59"]
[WhiteElo "2095"]
[BlackElo "2345"]
[Annotator "ChessBase"]
[PlyCount "54"]
[EventDate "2020.09.26"]
[EventType "swiss"]
[EventCountry "ITA"]
[SourceTitle "playchess.com"]
[Source "ChessBase"]
[SourceQuality "1"]
[TimeControl "40/5400+30:1800+30"]

1. d4 {[%emt 0:00:00]} Nf6 {[%emt 0:00:00]} 2. c4 {[%emt 0:00:00]} g6 {[%emt 0:00:00]} 3. g3 {[%emt 0:00:00]} c5 {[%emt 0:02:02]} 4. d5 {[%emt 0:00:24]} b5 {[%emt 0:00:15]} 5. cxb5 {[%emt 0:00:33]} a6 {[%emt 0:00:13]} 6. bxa6 {[%emt 0:00:28]} Bxa6 {[%emt 0:01:16]} 7. Nc3 {[%emt 0:00:26]} d6 {[%emt 0:00:57]} 8. e4 {[%emt 0:00:45]} Bxf1 {[%emt 0:09:28]} 9. Kxf1 {[%emt 0:00:26]} Bg7 {[%emt 0:00:03]} 10. Nf3 {[%emt 0:00:32]} O-O {[%emt 0:00:32]} 11. Kg2 {[%emt 0:00:29]} Nbd7 {[%emt 0:00:19]} 12. a4 {[%emt 0:00:32]} Qb6 {[%emt 0:04:28]} 13. Qe2 {[%emt 0:08:41]} Rfb8 {[%emt 0:03:53]} 14. Nb5 {[%emt 0:04:03]} Ne8 {[%emt 0:00:50]} 15. Ra3 {[%emt 0:01:17]} Nc7 {[%emt 0:03:03]} 16. Nxc7 {[%emt 0:00:23]} Qxc7 {[%emt 0:00:06]} 17. b3 {[%emt 0:02:12]} Rb4 {[%emt 0:04:51]} 18. Qc2 {[%emt 0:41:30]} c4 {[%emt 0:07:37]} 19. Nd2 {[%emt 0:12:10]} c3 {[%emt 0:07:59]} 20. Nc4 {[%emt 0:00:26]} Nc5 {[%emt 0:07:29]} 21. Be3 {[%emt 0:03:36]} Rab8 {[%emt 0:04:11]} 22. Bxc5 {[%emt 0:00:31]} Qxc5 {[%emt 0:00:05]} 23. Ne3 {[%emt 0:08:21]} Rd4 {[%emt 0:02:44]} 24. Qc1 {[%emt 0:01:29]} Rd2 {[%emt 0:02:22]} 25. Re1 {[%emt 0:00:56]} Bd4 {[%emt 0:05:48]} 26. Kg1 {[%emt 0:01:07]} Bxe3 {[%emt 0:01:39]} 27. fxe3 {[%emt 0:01:47]} Qb4 {[%emt 0:00:36]} 0-1

[Event "11th Dolomiti Open 2020"]
[Site "Forni di Sopra"]
[Date "2020.09.28"]
[Round "3.8"]
[White "Fischer, Daniel"]
[Black "Bordignon, Angelo"]
[Result "0-1"]
[ECO "B90"]
[WhiteElo "2331"]
[BlackElo "2024"]
[Annotator "ChessBase"]
[PlyCount "60"]
[EventDate "2020.09.26"]
[EventType "swiss"]
[EventCountry "ITA"]
[SourceTitle "playchess.com"]
[Source "ChessBase"]
[SourceQuality "1"]
[TimeControl "40/5400+30:1800+30"]

1. e4 {[%emt 0:00:00]} c5 {[%emt 0:00:00]} 2. Nf3 {[%emt 0:00:00]} d6 {[%emt 0:00:08]} 3. d4 {[%emt 0:00:00]} cxd4 {[%emt 0:00:04]} 4. Nxd4 {[%emt 0:00:00]} Nf6 {[%emt 0:00:03]} 5. Nc3 {[%emt 0:00:00]} a6 {[%emt 0:00:24]} 6. Be3 {[%emt 0:00:24]} e5 {[%emt 0:01:38]} 7. Nb3 {[%emt 0:00:41]} Be6 {[%emt 0:00:37]} 8. h3 {[%emt 0:00:21]} b5 {[%emt 0:01:22]} 9. a4 {[%emt 0:06:59]} b4 {[%emt 0:01:03]} 10. Nd5 {[%emt 0:00:06]} Nxd5 {[%emt 0:03:40]} 11. exd5 {[%emt 0:00:06]} Bf5 {[%emt 0:00:10]} 12. a5 {[%emt 0:04:49]} Be7 {[%emt 0:05:08]} 13. Ra4 {[%emt 0:07:22]} Bg5 {[%emt 0:06:40]} 14. Bxg5 {[%emt 0:09:33]} Qxg5 {[%emt 0:00:13]} 15. Rxb4 {[%emt 0:00:23]} O-O {[%emt 0:02:01]} 16. g4 {[%emt 0:07:01]} Bc8 {[%emt 0:01:48]} 17. h4 {[%emt 0:07:40]} Qe7 {[%emt 0:09:04]} 18. Bg2 {[%emt 0:01:35]} f5 {[%emt 0:01:54]} 19. g5 {[%emt 0:01:01]} Nd7 {[%emt 0:03:09]} 20. Qd2 {[%emt 0:03:40]} Ra7 {[%emt 0:15:15]} 21. Kd1 {[%emt 0:08:59]} Rc7 {[%emt 0:03:24]} 22. f4 {[%emt 0:08:12]} exf4 {[%emt 0:05:38]} 23. Re1 {[%emt 0:05:15]} Qf7 {[%emt 0:05:35]} 24. Qxf4 {[%emt 0:02:45]} Ne5 {[%emt 0:01:28]} 25. Rb6 {[%emt 0:06:51]} Qh5+ {[%emt 0:01:56]} 26. Kd2 {[%emt 0:03:11]} Rc4 {[%emt 0:10:42]} 27. Nd4 {[%emt 0:02:07]} Ng6 {[%emt 0:00:34]} 28. Qe3 {[%emt 0:01:03]} Qg4 {[%emt 0:03:18]} 29. c3 {[%emt 0:04:10]} Qxg2+ {[%emt 0:00:21]} 30. Re2 {[%emt 0:00:05]} Qxd5 {[%emt 0:00:27]} 0-1

[Event "11th Dolomiti Open 2020"]
[Site "Forni di Sopra"]
[Date "2020.09.28"]
[Round "3.9"]
[White "Bisignano, Giuseppe"]
[Black "Akhmedov, Alisher"]
[Result "1-0"]
[ECO "B40"]
[WhiteElo "1818"]
[BlackElo "1856"]
[Annotator "NA"]
[PlyCount "59"]
[EventDate "2020.09.26"]
[EventType "swiss"]
[EventCountry "ITA"]
[SourceTitle "playchess.com"]
[Source "ChessBase"]
[SourceQuality "1"]
[TimeControl "40/5400+30:1800+30"]

1. e4 {[%emt 0:00:00]} c5 {[%emt 0:00:00]} 2. Nf3 {[%emt 0:00:00]} e6 {[%emt 0:00:00]} 3. d4 {[%emt 0:00:00]} cxd4 {[%emt 0:00:00]} 4. Nxd4 {[%emt 0:00:00]} Nf6 {[%emt 0:00:06]} 5. Bd3 {[%emt 0:00:59]} d6 {[%emt 0:00:28]} 6. O-O {[%emt 0:00:18]} Nc6 {[%emt 0:00:20]} 7. Nxc6 {[%emt 0:01:07]} bxc6 {[%emt 0:00:10]} 8. Be3 {[%emt 0:00:45]} e5 {[%emt 0:00:19]} 9. c4 {[%emt 0:01:03]} Be7 {[%emt 0:00:17]} 10. Nc3 {[%emt 0:00:17]} O-O {[%emt 0:00:37]} 11. h3 {[%emt 0:01:41]} Be6 {[%emt 0:01:04]} 12. Qe2 {[%emt 0:01:14]} d5 {[%emt 0:02:50]} 13. exd5 {[%emt 0:00:39]} cxd5 {[%emt 0:00:12]} 14. cxd5 {[%emt 0:00:16]} Nxd5 {[%emt 0:00:22]} 15. Nxd5 {[%emt 0:03:39]} Bxd5 {[%emt 0:00:33]} 16. Rfd1 {[%emt 0:00:55]} Qa5 {[%emt 0:07:29]} 17. Bxh7+ {[%emt 0:03:03]} Kxh7 {[%emt 0:00:36]} 18. Qh5+ {[%emt 0:00:26]} Kg8 {[%emt 0:00:25]} 19. Qxe5 {[%emt 0:00:10]} Bf6 {[%emt 0:05:11]} 20. Rxd5 {[%emt 0:01:43]} Bxe5 {[%emt 0:00:30]} 21. Rxa5 {[%emt 0:00:14]} Bxb2 {[%emt 0:01:09]} 22. Rb1 {[%emt 0:00:15]} Bc3 {[%emt 0:03:18]} 23. Rxa7 {[%emt 0:00:29]} Rxa7 {[%emt 0:00:12]} 24. Bxa7 {[%emt 0:00:02]} Be5 {[%emt 0:01:16]} 25. Rb5 {[%emt 0:01:02]} Ra8 {[%emt 0:01:50]} 26. Rb7 {[%emt 0:01:58]} g6 {[%emt 0:00:21]} 27. g3 {[%emt 0:00:39]} Kg7 {[%emt 0:00:39]} 28. a4 {[%emt 0:00:19]} Kf6 {[%emt 0:01:18]} 29. f4 {[%emt 0:00:42]} Rxa7 {[%emt 0:00:06]} 30. fxe5+ {[%emt 0:00:11]} 1-0